lending/lending_fUSD_20240207
["ID","MTS","AMOUNT","RATE_DAILY","PERIOD"]
[313439272,1707347483888,-526.54,0.00049863,61]
[313439273,1707347483897,-498.55063196,0.00049863,61]
[313439274,1707347483906,-570.91,0.00049863,61]
[313439275,1707347483916,-500.0,0.00049863,61]
[313439276,1707347483924,-500.0,0.00049863,61]
[313439277,1707347483934,-500.0,0.00049863,61]
[313439278,1707347483944,-500.0,0.00049863,61]
[313439279,1707347483953,-500.0,0.00049863,61]
[313439280,1707347483963,-500.0,0.00049863,61]
[313439281,1707347483972,-500.0,0.00049863,61]
[313439282,1707347483982,-500.0,0.00049863,61]
[313439283,1707347483991,-500.0,0.00049863,61]
[313439284,1707347484001,-500.0,0.00049863,61]
[313439285,1707347484014,-649.08,0.00049863,61]
[313439286,1707347484023,-500.0,0.00049863,61]
[313439287,1707347484033,-500.0,0.00049863,61]
[313439288,1707347484043,-500.0,0.00049863,61]
[313439289,1707347484053,-500.0,0.00049863,61]
[313439290,1707347484063,-500.0,0.00049863,61]
[313439291,1707347484072,-500.0,0.00049863,61]
[313439292,1707347484084,-500.0,0.00049863,61]
[313439293,1707347484093,-589.55116213,0.00049863,61]
[313439294,1707347484103,-500.0,0.00049863,61]
[313439295,1707347484113,-518.39,0.00049863,61]
[313439296,1707347484123,-500.0,0.00049863,61]
[313439297,1707347484132,-1474.15,0.00049863,2]
[313439298,1707347484142,-500.0,0.00049863,61]
[313439299,1707347484152,-505.6,0.00049863,61]
[313439300,1707347484161,-576.25,0.00049863,61]
[313439301,1707347484171,-500.0,0.00049863,61]
[313439302,1707347484181,-500.0,0.00049863,61]
[313439303,1707347484191,-500.0,0.00049863,61]
[313439304,1707347484200,-500.0,0.00049863,61]
[313439305,1707347484209,-500.0,0.00049863,61]
[313439306,1707347484218,-500.0,0.00049863,61]
[313439307,1707347484228,-500.0,0.00049863,61]
[313439308,1707347484237,-500.0,0.00049863,61]
[313439309,1707347484246,-500.0,0.00049863,61]
[313439310,1707347484256,-703.02,0.00049863,61]
[313439311,1707347484265,-500.0,0.00049863,61]
[313439312,1707347484274,-524.02,0.00049863,61]
[313439313,1707347484284,-500.0,0.00049863,61]
[313439314,1707347484293,-500.0,0.00049863,61]
[313439315,1707347484302,-518.38,0.00049863,61]
[313439316,1707347484312,-545.13,0.00049863,61]
[313439317,1707347484321,-500.0,0.00049863,61]
[313439318,1707347484330,-329.49068682,0.00049863,61]
[313439319,1707347484339,-500.0,0.00049863,61]
[313439320,1707347484348,-696.9,0.00049863,61]
[313439321,1707347484358,-500.0,0.00049863,61]
[313439322,1707347484368,-500.0,0.00049863,61]
[313439323,1707347484378,-500.0,0.00049863,61]
[313439324,1707347484388,-500.0,0.00049863,61]
[313439325,1707347484398,-500.0,0.00049863,61]
[313439326,1707347484408,-644.5,0.00049863,61]
[313439327,1707347484417,-500.0,0.00049863,61]
[313439328,1707347484427,-500.0,0.00049863,61]
[313439329,1707347484437,-500.0,0.00049863,14]
[313439330,1707347484446,-500.0,0.00049863,61]
[313439331,1707347484456,-500.0,0.00049863,61]
[313439332,1707347484466,-500.0,0.00049863,61]
[313439333,1707347484476,-500.0,0.00049863,61]
[313439334,1707347484485,-500.0,0.00049863,61]
[313439335,1707347484495,-500.0,0.00049863,61]
[313439336,1707347484504,-500.0,0.00049863,61]
[313439337,1707347484513,-500.0,0.00049863,61]
[313439338,1707347484522,-500.0,0.00049863,61]
[313439339,1707347484531,-500.0,0.00049863,61]
[313439340,1707347484540,-500.0,0.00049863,61]
[313439341,1707347484550,-500.0,0.00049863,61]
[313439342,1707347484559,-500.0,0.00049863,61]
[313439343,1707347484567,-500.0,0.00049863,61]
[313439344,1707347484576,-500.0,0.00049863,61]
[313439345,1707347484586,-500.0,0.00049863,61]
[313439346,1707347484768,-538.94,0.00049863,61]
[313439347,1707347484778,-500.0,0.00049863,61]
[313439348,1707347484787,-500.0,0.00049863,61]
[313439349,1707347484796,-508.49,0.00049863,61]
[313439350,1707347484805,-522.25311817,0.00049863,61]
[313439351,1707347484814,-500.0,0.00049863,61]
[313439352,1707347484823,-500.0,0.00049863,61]
[313439353,1707347484832,-500.0,0.00049863,61]
[313439354,1707347484841,-500.0,0.00049863,61]
[313439355,1707347484850,-596.14,0.00049863,61]
[313439356,1707347484859,-622.33,0.00049863,61]
[313439357,1707347484868,-500.0,0.00049863,61]
[313439358,1707347484877,-186.74084712,0.00049863,7]
[313439359,1707347484886,-304.21873783,0.00049863,61]
[313439360,1707347484895,-500.0,0.00049863,61]
[313439361,1707347484904,-330.54440882,0.00049863,61]
[313439362,1707347484913,-865.43,0.00049863,61]
[313439363,1707347484922,-255.35315395,0.00049863,61]
[313439364,1707347484931,-521.35337594,0.00049863,61]
[313439365,1707347484940,-526.49092774,0.00049863,61]
[313439366,1707347484950,-500.0,0.00049863,61]
[313439367,1707347484958,-701.57,0.00049863,61]
[313439368,1707347484967,-500.0,0.00049863,61]
[313439369,1707347484977,-500.0,0.00049863,61]
[313439370,1707347484986,-500.0,0.00049863,61]
[313439371,1707347484995,-500.0,0.00049863,61]
[313439372,1707347485007,-500.0,0.00049863,61]
[313439373,1707347485017,-500.0,0.00049863,61]
[313439374,1707347485026,-500.0,0.00049863,61]
[313439375,1707347485035,-500.0,0.00049863,61]
[313439376,1707347485046,-500.0,0.00049863,61]
[313439377,1707347485055,-500.0,0.00049863,61]
[313439378,1707347485064,-500.0,0.00049863,61]
[313439379,1707347485074,-519.35,0.00049863,61]
[313439380,1707347485084,-426.85656086,0.00049863,61]
[313439381,1707347485094,-500.0,0.00049863,7]
[313439382,1707347485104,-500.0,0.00049863,61]
[313439383,1707347485114,-1000.0,0.00049863,61]
[313439384,1707347485124,-509.73442925,0.00049863,61]
[313439385,1707347485133,-500.0,0.00049863,61]
[313439386,1707347485143,-500.0,0.00049863,61]
[313439387,1707347485152,-500.0,0.00049863,61]
[313439388,1707347485161,-500.0,0.00049863,61]
[313439389,1707347485171,-500.0,0.00049863,61]
[313439390,1707347485180,-500.0,0.00049863,61]
[313439391,1707347485190,-500.0,0.00049863,61]
[313439392,1707347485199,-500.0,0.00049863,61]
[313439393,1707347485208,-500.0,0.00049863,61]
[313439394,1707347485218,-593.04,0.00049863,61]
[313439395,1707347485227,-500.0,0.00049863,61]
[313439396,1707347485237,-514.75200634,0.00049863,2]
[313439397,1707347485246,-500.0,0.00049863,61]
[313439398,1707347485255,-500.0,0.00049863,61]
[313439399,1707347485265,-657.6,0.00049863,61]
[313439400,1707347485274,-154.14939143,0.00049863,61]
[313439401,1707347485283,-622.87,0.00049863,61]
[313439402,1707347485292,-504.7,0.00049863,61]
[313439403,1707347485302,-500.0,0.00049863,61]
[313439404,1707347485311,-502.52,0.00049863,61]
[313439405,1707347485320,-528.68,0.00049863,61]
[313439406,1707347485330,-500.0,0.00049863,61]
[313439407,1707347485339,-500.0,0.00049863,61]
[313439408,1707347485348,-500.0,0.00049863,61]
[313439409,1707347485357,-500.0,0.00049863,61]
[313439410,1707347485366,-500.0,0.00049863,61]
[313439411,1707347485376,-500.0,0.00049863,61]
[313439412,1707347485385,-500.0,0.00049863,61]
[313439413,1707347485394,-500.0,0.00049863,61]
[313439414,1707347485404,-500.0,0.00049863,61]
[313439415,1707347485414,-291.1970076,0.00049863,61]
[313439416,1707347485423,-858.39,0.00049863,61]
[313439417,1707347485433,-500.0,0.00049863,61]
[313439418,1707347485443,-511.97,0.00049863,61]
[313439419,1707347485454,-587.18,0.00049863,61]
[313439420,1707347485464,-500.0,0.00049863,61]
[313439421,1707347485473,-500.0,0.00049863,61]
[313439422,1707347485483,-500.0,0.00049863,61]
[313439423,1707347485492,-500.0,0.00049863,61]
[313439424,1707347485502,-500.0,0.00049863,61]
[313439425,1707347485511,-500.0,0.00049863,61]
[313439426,1707347485520,-500.0,0.00049863,61]
[313439427,1707347485529,-500.0,0.00049863,61]
[313439428,1707347485539,-500.0,0.00049863,61]
[313439429,1707347485548,-500.0,0.00049863,61]
[313439430,1707347485557,-500.0,0.00049863,61]
[313439431,1707347485566,-500.0,0.00049863,61]
[313439432,1707347485575,-500.0,0.00049863,61]
[313439433,1707347485585,-500.0,0.00049863,61]
[313439434,1707347485594,-625.76,0.00049863,61]
[313439435,1707347485603,-500.0,0.00049863,61]
[313439436,1707347485613,-500.0,0.00049863,61]
[313439437,1707347485623,-537.43320916,0.00049863,61]
[313439438,1707347485632,-500.0,0.00049863,61]
[313439439,1707347485641,-630.86264364,0.00049863,61]
[313439440,1707347485651,-500.0,0.00049863,61]
[313439441,1707347485660,-610.83,0.00049863,61]
[313439442,1707347485670,-500.0,0.00049863,61]
[313439443,1707347485679,-500.0,0.00049863,61]
[313439444,1707347485689,-500.0,0.00049863,61]
[313439445,1707347485699,-500.0,0.00049863,61]
[313439446,1707347485708,-1235.57,0.00049863,61]
[313439447,1707347485718,-500.0,0.00049863,61]
[313439448,1707347485728,-500.0,0.00049863,61]
[313439449,1707347485738,-156.13039718,0.00049863,2]
[313439450,1707347485747,-494.0,0.00049863,2]
[313439451,1707347485757,-500.0,0.00049863,61]
[313439452,1707347485766,-577.59,0.00049863,61]
[313439453,1707347485776,-500.0,0.00049863,61]
[313439454,1707347485785,-500.0,0.00049863,61]
[313439455,1707347485794,-500.0,0.00049863,61]
[313439456,1707347485804,-500.0,0.00049863,61]
[313439457,1707347485813,-592.65,0.00049863,61]
[313439458,1707347485822,-638.12,0.00049863,61]
[313439459,1707347485832,-500.0,0.00049863,2]
[313439460,1707347485841,-500.0,0.00049863,61]
[313439461,1707347485851,-884.51,0.00049863,61]
[313439462,1707347485860,-445.3465886,0.00049863,61]
[313439463,1707347485869,-893.34,0.00049863,61]
[313439464,1707347485878,-500.0,0.00049863,61]
[313439465,1707347485888,-500.0,0.00049863,61]
[313439466,1707347485897,-500.0,0.00049863,61]
[313439467,1707347485906,-500.0,0.00049863,61]
[313439468,1707347485915,-500.0,0.00049863,61]
[313439469,1707347485925,-1433.63,0.00049863,61]
[313439470,1707347485934,-500.0,0.00049863,61]
[313439471,1707347485943,-500.0,0.00049863,61]
[313439472,1707347485952,-500.0,0.00049863,61]
[313439473,1707347485977,-500.0,0.00049863,61]
[313439474,1707347485995,-500.0,0.00049863,61]
[313439475,1707347486016,-500.0,0.00049863,61]
[313439476,1707347486035,-500.0,0.00049863,61]
[313439477,1707347486052,-500.0,0.00049863,61]
[313439478,1707347486070,-500.0,0.00049863,61]
[313439479,1707347486087,-625.71,0.00049863,61]
[313439480,1707347486106,-500.0,0.00049863,61]
[313439481,1707347486123,-1393.55,0.00049863,61]
[313439482,1707347486141,-500.0,0.00049863,61]
[313439483,1707347486160,-785.93,0.00049863,61]
[313439484,1707347486176,-500.0,0.00049863,61]
[313439485,1707347486189,-500.0,0.00049863,61]
[313439486,1707347486208,-500.0,0.00049863,61]
[313439487,1707347486222,-500.0,0.00049863,61]
[313439488,1707347486237,-642.15,0.00049863,61]
[313439489,1707347486252,-512.77,0.00049863,61]
[313439490,1707347486267,-500.0,0.00049863,61]
[313439491,1707347486282,-497.26785571,0.00049863,61]
[313439492,1707347486297,-987.44,0.00049863,61]
[313439493,1707347486312,-708.18,0.00049863,61]
[313439494,1707347486327,-1279.81,0.00049863,61]
[313439495,1707347486342,-500.0,0.00049863,61]
[313439496,1707347486356,-500.0,0.00049863,61]
[313439497,1707347486371,-500.0,0.00049863,30]
[313439498,1707347486386,-500.0,0.00049863,61]
[313439499,1707347486401,-1039.76,0.00049863,61]
[313439500,1707347486416,-1510.19,0.00049863,61]
[313439501,1707347486431,-500.0,0.00049863,61]
[313439502,1707347486445,-1202.21,0.00049863,61]
[313439503,1707347486460,-882.03,0.00049863,61]
[313439504,1707347486474,-500.0,0.00049863,61]
[313439505,1707347486488,-172.12695747,0.00049863,61]
[313439506,1707347486503,-500.0,0.00049863,61]
[313439507,1707347486517,-1944.08,0.00049863,61]
[313439508,1707347486531,-500.0,0.00049863,61]
[313439509,1707347486546,-500.0,0.00049863,61]
[313439510,1707347486560,-500.0,0.00049863,61]
[313439511,1707347486574,-827.95,0.00049863,61]
[313439512,1707347486589,-500.0,0.00049863,61]
[313439513,1707347486603,-1399.44,0.00049863,61]
[313439514,1707347486617,-1000.0,0.00049863,50]
[313439515,1707347486631,-500.0,0.00049863,61]
[313439516,1707347486646,-500.0,0.00049863,61]
[313439517,1707347486660,-500.0,0.00049863,61]
[313439518,1707347486675,-1225.78,0.00049863,61]
[313439519,1707347486689,-500.0,0.00049863,7]
[313439520,1707347486704,-500.0,0.00049863,61]
[313439521,1707347486719,-500.0,0.00049863,61]
[313439522,1707347486734,-500.0,0.00049863,61]
[313439523,1707347486749,-500.0,0.00049863,61]
[313439524,1707347486763,-500.0,0.00049863,61]
[313439525,1707347486778,-500.0,0.00049863,61]
[313439526,1707347486793,-1318.1,0.00049863,61]
[313439527,1707347486808,-588.81,0.00049863,61]
[313439528,1707347486822,-1023.84,0.00049863,61]
[313439529,1707347486837,-603.49,0.00049863,61]
[313439530,1707347486851,-557.41,0.00049863,61]
[313439531,1707347486866,-1660.22,0.00049863,61]
[313439532,1707347486880,-678.41,0.00049863,61]
[313439533,1707347486895,-500.0,0.00049863,61]
[313439534,1707347486914,-250.0,0.00049863,61]
[313439535,1707347486929,-500.0,0.00049863,61]
[313439536,1707347486943,-870.42,0.00049863,61]
[313439537,1707347486958,-1350.63,0.00049863,61]
[313439538,1707347486973,-500.0,0.00049863,61]
[313439539,1707347486988,-763.54,0.00049863,61]
[313439540,1707347487004,-500.0,0.00049863,61]
[313439541,1707347487019,-500.0,0.00049863,61]
[313439542,1707347487033,-500.0,0.00049863,61]
[313439543,1707347487047,-900.52,0.00049863,61]
[313439544,1707347487061,-822.94,0.00049863,61]
[313439545,1707347487076,-721.43,0.00049863,61]
[313439546,1707347487092,-500.0,0.00049863,61]
[313439547,1707347487108,-500.0,0.00049863,61]
[313439548,1707347487124,-500.17190614,0.00049863,61]
[313439549,1707347487139,-500.0,0.00049863,61]
[313439550,1707347487154,-500.0,0.00049863,61]
[313439551,1707347487169,-679.64,0.00049863,30]
[313439552,1707347487188,-500.0,0.00049863,61]
[313439553,1707347487203,-500.0,0.00049863,61]
[313439554,1707347487217,-500.0,0.00049863,61]
[313439555,1707347487232,-639.99,0.00049863,61]
[313439556,1707347487246,-716.79,0.00049863,61]
[313439557,1707347487261,-677.67,0.00049863,61]
[313439558,1707347487276,-334.34586211,0.00049863,61]
[313439559,1707347487291,-507.68395895,0.00049863,61]
[313439560,1707347487306,-951.15,0.00049863,61]
[313439561,1707347487320,-500.0,0.00049863,61]
[313439562,1707347487334,-500.0,0.00049863,61]
[313439563,1707347487349,-500.0,0.00049863,61]
[313439564,1707347487363,-527.08,0.00049863,61]
[313439565,1707347487378,-500.0,0.00049863,61]
[313439566,1707347487393,-722.05,0.00049863,61]
[313439567,1707347487408,-1602.94,0.00049863,61]
[313439568,1707347487422,-1186.2,0.00049863,61]
[313439569,1707347487437,-587.67,0.00049863,61]
[313439570,1707347487451,-633.02,0.00049863,61]
[313439571,1707347487465,-500.0,0.00049863,61]
[313439572,1707347487480,-500.0,0.00049863,61]
[313439573,1707347487494,-500.0,0.00049863,61]
[313439574,1707347487509,-904.78,0.00049863,61]
[313439575,1707347487523,-500.0,0.00049863,61]
[313439576,1707347487539,-421.83552083,0.00049863,61]
[313439577,1707347487554,-500.0,0.00049863,61]
[313439578,1707347487568,-500.0,0.00049863,61]
[313439579,1707347487583,-1100.98,0.00049863,61]
[313439580,1707347487599,-500.0,0.00049863,61]
[313439581,1707347487613,-812.93,0.00049863,61]
[313439582,1707347487628,-1847.02,0.00049863,61]
[313439583,1707347487642,-565.02,0.00049863,61]
[313439584,1707347487657,-1007.48,0.00049863,61]
[313439585,1707347487672,-500.0,0.00049863,61]
[313439586,1707347487686,-500.0,0.00049863,61]
[313439587,1707347487700,-500.0,0.00049863,61]
[313439588,1707347487716,-500.0,0.00049863,61]
[313439589,1707347487731,-500.0,0.00049863,61]
[313439590,1707347487745,-1362.87,0.00049863,61]
[313439591,1707347487760,-871.75,0.00049863,61]
[313439592,1707347487774,-500.0,0.00049863,61]
[313439593,1707347487789,-500.0,0.00049863,61]
[313439594,1707347487804,-1024.3,0.00049863,61]
[313439595,1707347487818,-500.0,0.00049863,61]
[313439596,1707347487832,-500.0,0.00049863,61]
[313439597,1707347487846,-500.0,0.00049863,61]
[313439598,1707347487861,-1446.27,0.00049863,61]
[313439599,1707347488112,-672.39,0.00049863,61]
[313439600,1707347488132,-500.0,0.00049863,61]
[313439601,1707347488142,-587.15,0.00049863,61]
[313439602,1707347488152,-500.0,0.00049863,61]
[313439603,1707347488161,-322.94669123,0.00049863,61]
[313439604,1707347488170,-500.0,0.00049863,61]
[313439605,1707347488180,-865.24,0.00049863,61]
[313439606,1707347488189,-706.96,0.00049863,61]
[313439607,1707347488198,-258.43534247,0.00049863,61]
[313439608,1707347488208,-1651.05,0.00049863,2]
[313439609,1707347488217,-500.0,0.00049863,61]
[313439610,1707347488226,-500.0,0.00049863,61]
[313439611,1707347488236,-500.0,0.00049863,61]
[313439612,1707347488246,-629.18,0.00049863,61]
[313439613,1707347488255,-500.0,0.00049863,61]
[313439614,1707347488264,-500.0,0.00049863,61]
[313439615,1707347488273,-500.0,0.00049863,61]
[313439616,1707347488283,-500.0,0.00049863,61]
[313439617,1707347488292,-1072.47,0.00049863,61]
[313439618,1707347488301,-589.77,0.00049863,61]
[313439619,1707347488310,-500.0,0.00049863,61]
[313439620,1707347488319,-500.0,0.00049863,61]
[313439621,1707347488328,-638.9,0.00049863,61]
[313439622,1707347488338,-566.71,0.00049863,61]
[313439623,1707347488347,-855.94,0.00049863,61]
[313439624,1707347488356,-891.57,0.00049863,61]
[313439625,1707347488366,-565.18,0.00049863,61]
[313439626,1707347488375,-500.0,0.00049863,61]
[313439627,1707347488384,-500.0,0.00049863,61]
[313439628,1707347488394,-1419.61,0.00049863,61]
[313439629,1707347488403,-500.0,0.00049863,61]
[313439630,1707347488412,-500.0,0.00049863,61]
[313439631,1707347488421,-500.0,0.00049863,61]
[313439632,1707347488431,-500.0,0.00049863,61]
[313439633,1707347488440,-780.46,0.00049863,61]
[313439634,1707347488449,-1854.4,0.00049863,61]
[313439635,1707347488458,-500.0,0.00049863,61]
[313439636,1707347488468,-500.0,0.00049863,61]
[313439637,1707347488477,-500.0,0.00049863,61]
[313439638,1707347488486,-504.2551887,0.00049863,61]
[313439639,1707347488495,-500.0,0.00049863,61]
[313439640,1707347488505,-1316.79,0.00049863,61]
[313439641,1707347488514,-500.0,0.00049863,61]
[313439642,1707347488523,-1708.38,0.00049863,61]
[313439643,1707347488532,-1342.65,0.00049863,61]
[313439644,1707347488541,-500.0,0.00049863,61]
[313439645,1707347488550,-1494.77,0.00049863,61]
[313439646,1707347488560,-500.0,0.00049863,61]
[313439647,1707347488569,-500.0,0.00049863,61]
[313439648,1707347488578,-500.0,0.00049863,61]
[313439649,1707347488587,-500.0,0.00049863,61]
[313439650,1707347488597,-663.75,0.00049863,61]
[313439651,1707347488606,-500.0,0.00049863,61]
[313439652,1707347488616,-500.0,0.00049863,61]
[313439653,1707347488626,-500.0,0.00049863,61]
[313439654,1707347488635,-500.0,0.00049863,61]
[313439655,1707347488644,-500.0,0.00049863,61]
[313439656,1707347488654,-1055.96,0.00049863,61]
[313439657,1707347488663,-1526.79,0.00049863,61]
[313439658,1707347488673,-500.0,0.00049863,61]
[313439659,1707347488682,-500.0,0.00049863,61]
[313439660,1707347488692,-1396.27,0.00049863,61]
[313439661,1707347488701,-500.0,0.00049863,61]
[313439662,1707347488710,-500.0,0.00049863,61]
[313439663,1707347488720,-500.0,0.00049863,61]
[313439664,1707347488729,-648.32,0.00049863,61]
[313439665,1707347488738,-539.92,0.00049863,61]
[313439666,1707347488747,-500.0,0.00049863,61]
[313439667,1707347488756,-668.26,0.00049863,60]
[313439668,1707347488765,-500.0,0.00049863,61]
[313439669,1707347488774,-216.77008743,0.00049863,28]
[313439670,1707347488783,-500.0,0.00049863,61]
[313439671,1707347488792,-500.0,0.00049863,61]
[313439672,1707347488802,-500.0,0.00049863,61]
[313439673,1707347488811,-500.0,0.00049863,61]
[313439674,1707347488820,-500.0,0.00049863,61]
[313439675,1707347488834,-500.0,0.00049863,61]
[313439676,1707347488843,-1429.47,0.00049863,61]
[313439677,1707347488852,-500.0,0.00049863,61]
[313439678,1707347488862,-945.99,0.00049863,61]
[313439679,1707347488872,-1000.0,0.00049863,7]
[313439680,1707347488881,-500.0,0.00049863,61]
[313439681,1707347488890,-500.0,0.00049863,30]
[313439682,1707347488899,-204.8402231,0.00049863,61]
[313439683,1707347488909,-500.0,0.00049863,61]
[313439684,1707347488918,-500.0,0.00049863,61]
[313439685,1707347488928,-500.0,0.00049863,61]
[313439686,1707347488937,-500.0,0.00049863,61]
[313439687,1707347488946,-2011.65,0.00049863,61]
[313439688,1707347488956,-500.0,0.00049863,61]
[313439689,1707347488965,-512.34,0.00049863,61]
[313439690,1707347488975,-1457.18,0.00049863,61]
[313439691,1707347488984,-500.0,0.00049863,7]
[313439692,1707347488994,-500.0,0.00049863,61]
[313439693,1707347489007,-500.0,0.00049863,61]
[313439694,1707347489016,-500.0,0.00049863,61]
[313439695,1707347489025,-500.0,0.00049863,61]
[313439696,1707347489035,-500.0,0.00049863,61]
[313439697,1707347489044,-500.0,0.00049863,61]
[313439698,1707347489053,-1645.54,0.00049863,61]
[313439699,1707347489062,-500.0,0.00049863,61]
[313439700,1707347489072,-1020.4,0.00049863,61]
[313439701,1707347489083,-929.02,0.00049863,61]
[313439702,1707347489092,-1068.5,0.00049863,2]
[313439703,1707347489101,-194.11103892,0.00049863,61]
[313439704,1707347489111,-500.0,0.00049863,61]
[313439705,1707347489121,-889.95,0.00049863,61]
[313439706,1707347489130,-500.0,0.00049863,61]
[313439707,1707347489139,-500.0,0.00049863,61]
[313439708,1707347489149,-637.33504731,0.00049863,61]
[313439709,1707347489158,-500.0,0.00049863,61]
[313439710,1707347489167,-500.0,0.00049863,61]
[313439711,1707347489177,-500.0,0.00049863,61]
[313439712,1707347489187,-500.0,0.00049863,61]
[313439713,1707347489196,-1176.13,0.00049863,61]
[313439714,1707347489206,-500.0,0.00049863,61]
[313439715,1707347489215,-500.0,0.00049863,61]
[313439716,1707347489224,-781.11,0.00049863,61]
[313439717,1707347489235,-500.0,0.00049863,61]
[313439718,1707347489244,-248.73413176,0.00049863,61]
[313439719,1707347489253,-500.0,0.00049863,61]
[313439720,1707347489263,-805.69,0.00049863,61]
[313439721,1707347489272,-500.0,0.00049863,61]
[313439722,1707347489281,-500.0,0.00049863,61]
[313439723,1707347489291,-500.0,0.00049863,61]
[313439724,1707347489300,-500.0,0.00049863,61]
[313439725,1707347489309,-1791.63,0.00049863,61]
[313439726,1707347489318,-500.0,0.00049863,61]
[313439727,1707347489327,-500.0,0.00049863,61]
[313439728,1707347489337,-500.0,0.00049863,61]
[313439729,1707347489346,-784.67,0.00049863,61]
[313439730,1707347489355,-792.24,0.00049863,61]
[313439731,1707347489364,-500.0,0.00049863,61]
[313439732,1707347489374,-500.0,0.00049863,61]
[313439733,1707347489383,-10000.0,0.00049863,61]
[313439734,1707347489393,-301.1701831,0.00049863,61]
[313439735,1707347489403,-919.17,0.00049863,61]
[313439736,1707347489414,-500.0,0.00049863,61]
[313439737,1707347489423,-844.83,0.00049863,61]
[313439738,1707347489433,-500.0,0.00049863,61]
[313439739,1707347489442,-613.56,0.00049863,61]
[313439740,1707347489451,-500.0,0.00049863,61]
[313439741,1707347489460,-535.33,0.00049863,61]
[313439742,1707347489469,-500.0,0.00049863,31]
[313439743,1707347489479,-500.0,0.00049863,61]
[313439744,1707347489488,-538.45,0.00049863,61]
[313439745,1707347489497,-1219.52,0.00049863,61]
[313439746,1707347489506,-500.0,0.00049863,61]
[313439747,1707347489515,-500.0,0.00049863,61]
[313439748,1707347489525,-994.99,0.00049863,61]
[313439749,1707347489535,-1561.58,0.00049863,61]
[313439750,1707347489544,-1749.86,0.00049863,61]
[313439751,1707347489554,-500.0,0.00049863,61]
[313439752,1707347489562,-620.9,0.00049863,61]
[313439753,1707347489572,-692.32,0.00049863,61]
[313439754,1707347489581,-908.6,0.00049863,61]
[313439755,1707347489590,-500.0,0.00049863,61]
[313439756,1707347489599,-500.0,0.00049863,61]
[313439757,1707347489609,-500.0,0.00049863,61]
[313439758,1707347489618,-762.27,0.00049863,61]
[313439759,1707347489629,-500.0,0.00049863,61]
[313439760,1707347489638,-500.0,0.00049863,61]
[313439761,1707347489647,-500.0,0.00049863,61]
[313439762,1707347489656,-1508.76,0.00049863,61]
[313439763,1707347489665,-515.05396009,0.00049863,61]
[313439764,1707347489675,-668.34,0.00049863,61]
[313439765,1707347489684,-500.0,0.00049863,61]
[313439766,1707347489693,-500.0,0.00049863,61]
[313439767,1707347489702,-500.0,0.00049863,61]
[313439768,1707347489711,-593.96,0.00049863,61]
[313439769,1707347489721,-500.0,0.00049863,61]
[313439770,1707347489730,-500.0,0.00049863,61]
[313439771,1707347489739,-500.0,0.00049863,61]